fUSD/lending_fUSD_20251217
["ID","MTS","AMOUNT","RATE_DAILY","PERIOD"]
[398914029,1765990238647,-500.0,0.00014506,2]
[398914031,1765990238657,-151.0,0.00014506,2]
[398914033,1765990238667,-500.0,0.00014506,2]
[398914035,1765990238677,-500.0,0.00014506,2]
[398914037,1765990238687,-151.0,0.00014506,2]
[398914039,1765990238697,-425.06159563,0.00014506,2]
[398914041,1765990238706,-151.0,0.00014506,2]
[398914043,1765990238716,-151.0,0.00014506,2]
[398914077,1765990239048,-151.0,0.00014506,2]
[398914083,1765990239096,-151.0,0.00014506,2]
[398914085,1765990239106,-151.0,0.00014506,2]
[398914087,1765990239116,-151.0,0.00014506,2]
[398914089,1765990239125,-151.0,0.00014506,2]
[398914091,1765990239135,-151.0,0.00014506,2]
[398914093,1765990239144,-151.0,0.00014506,2]
[398914095,1765990239154,-151.0,0.00014506,2]
[398914097,1765990239163,-151.0,0.00014506,2]
[398914099,1765990239172,-151.0,0.00014506,2]
[398914101,1765990239182,-263.68804317,0.00014506,2]
[398914103,1765990239191,-151.0,0.00014506,2]
[398914105,1765990239201,-151.0,0.00014506,2]
[398914107,1765990239211,-151.0,0.00014506,2]
[398914109,1765990239221,-151.0,0.00014506,2]
[398914111,1765990239231,-151.0,0.00014506,2]
[398914113,1765990239240,-151.0,0.00014506,2]
[398914115,1765990239249,-500.0,0.00014506,2]
[398914117,1765990239258,-151.0,0.00014506,2]
[398914119,1765990239268,-151.0,0.00014506,2]
[398914120,1765990239277,-151.0,0.00014506,2]
[398914122,1765990239288,-151.0,0.00014506,2]
[398914124,1765990239297,-194.21929349,0.00014506,2]
[398914126,1765990239306,-151.0,0.00014506,2]
[398914128,1765990239315,-151.0,0.00014506,2]
[398914129,1765990239325,-1832.35028223,0.00014514,2]
[398914131,1765990239333,-500.0,0.00014514,2]
[398914133,1765990239343,-500.0,0.00014514,2]
[398914135,1765990239352,-500.0,0.00014514,2]
[398914137,1765990239361,-500.0,0.00014514,2]
[398914138,1765990239371,-500.0,0.00014514,2]
[398914140,1765990239380,-500.0,0.00014514,2]
[398914142,1765990239389,-468.97910059,0.00014514,2]
[398914144,1765990239399,-500.0,0.00014514,2]
[398914146,1765990239408,-392.85536899,0.00014514,2]
[398914147,1765990239417,-500.0,0.00014514,2]
[398914148,1765990239426,-500.0,0.00014514,2]
[398914149,1765990239435,-500.0,0.00014514,2]
[398914150,1765990239444,-500.0,0.00014514,2]
[398914151,1765990239453,-500.0,0.00014514,2]
[398914152,1765990239463,-500.0,0.00014514,2]
[398914153,1765990239473,-500.0,0.00014514,2]
[398914154,1765990239481,-500.0,0.00014514,2]
[398914155,1765990239490,-500.0,0.00014514,2]
[398914156,1765990239499,-500.0,0.00014514,2]
[398914157,1765990239508,-1000.0,0.00014514,2]
[398914158,1765990239517,-1000.0,0.00014514,2]
[398914159,1765990239527,-1000.0,0.00014514,2]
[398914160,1765990239536,-1000.0,0.00014514,2]
[398914161,1765990239545,-615.3449817,0.00014514,2]
[398914162,1765990239554,-1000.0,0.00014514,2]
[398914163,1765990239564,-1000.0,0.00014514,2]
[398914164,1765990239573,-1000.0,0.00014514,2]
[398914165,1765990239582,-1000.0,0.00014514,2]
[398914166,1765990239592,-1000.0,0.00014514,2]
[398914167,1765990239601,-1000.0,0.00014514,2]
[398914168,1765990239610,-225.73772161,0.00014514,2]
[398914169,1765990239619,-500.0,0.00014514,2]
[398914170,1765990239628,-558.32,0.00014514,2]
[398914171,1765990239637,-500.0,0.00014514,2]
[398914172,1765990239647,-500.0,0.00014514,2]
[398914173,1765990239656,-500.14853871,0.00014514,2]
[398914174,1765990239665,-500.0,0.00014514,2]
[398914175,1765990239674,-3437.5222,0.00014515,2]
[398914176,1765990239683,-150.0,0.00014528,2]
[398914177,1765990239693,-617.05510351,0.00014614,2]
[398914178,1765990239702,-500.0,0.00014614,2]
[398914179,1765990239711,-188.52,0.00014614,2]
[398914180,1765990239722,-500.0,0.00014614,2]
[398914181,1765990239731,-500.0,0.00014614,2]
[398914182,1765990239741,-8184.87901489,0.00014703,2]
[398914183,1765990239750,-14003.8447273,0.00014703,2]
[398914184,1765990239759,-500.0,0.0001478,2]
[398914185,1765990239768,-1046.42,0.0001478,2]
[398914186,1765990239778,-228.19281027,0.00014794,2]
[398914187,1765990239788,-500.0,0.00014794,2]
[398914188,1765990239797,-500.0,0.00014794,2]
[398914189,1765990239807,-500.0,0.00014794,2]
[398914190,1765990239816,-500.0,0.00014794,2]
[398914191,1765990239826,-150.0,0.00014883,2]
[398914192,1765990239835,-150.53901239,0.000149,2]
[398914193,1765990239844,-8184.87901489,0.00014977,2]
[398914194,1765990239853,-14003.8447273,0.00014977,2]
[398914195,1765990239863,-500.0,0.00015054,2]
[398914196,1765990239872,-1046.42,0.00015054,2]
[398914197,1765990239882,-200.0,0.00015054,2]
[398914198,1765990239891,-200.0,0.00015054,2]
[398914199,1765990239901,-500.0,0.00015054,2]
[398914200,1765990239911,-283.0,0.00015085,2]
[398914201,1765990239928,-405.0,0.00015146,2]
[398914202,1765990239938,-260.0,0.00015199,2]
[398914203,1765990239947,-151.0,0.00015201,2]
[398914204,1765990239957,-151.0,0.00015201,2]
[398914205,1765990239967,-6957.06,0.00015241,2]
[398914206,1765990239977,-8184.87901489,0.00015252,2]
[398914207,1765990239986,-14003.8447273,0.00015252,2]
[398914208,1765990239998,-285.82987756,0.00015288,2]
[398914209,1765990240007,-150.0,0.00015288,2]
[398914210,1765990240017,-150.0,0.00015288,2]
[398914211,1765990240027,-150.0,0.00015288,2]
[398914212,1765990240036,-150.00000001,0.00015288,2]
[398914213,1765990240045,-150.0,0.00015288,2]
[398914214,1765990240054,-150.0,0.00015288,2]
[398914215,1765990240063,-150.0,0.00015288,2]
[398914216,1765990240072,-302.64270691,0.0001529,2]
[398914217,1765990240081,-1000.0,0.00015295,2]
[398914219,1765990240090,-1000.0,0.00015297,2]
[398914220,1765990240102,-500.0,0.00015328,2]
[398914221,1765990240112,-1046.42,0.00015328,2]
[398914222,1765990240121,-300.0,0.00015334,2]
[398914223,1765990240130,-195.0,0.00015334,2]
[398914224,1765990240139,-250.0,0.00015334,2]
[398914225,1765990240148,-1658.0,0.00015403,2]
[398914226,1765990240157,-420.0,0.00015403,2]
[398914227,1765990240167,-1680.0,0.00015465,2]
[398914228,1765990240176,-13692.05,0.00015479,2]
[398914229,1765990240185,-8184.87901489,0.00015527,2]
[398914230,1765990240194,-14003.8447273,0.00015527,2]
[398914231,1765990240203,-255.0,0.00015552,2]
[398914232,1765990240212,-500.0,0.00015602,2]
[398914233,1765990240223,-1046.42,0.00015602,2]
[398914234,1765990240233,-200.0,0.00015602,2]
[398914235,1765990240242,-500.0,0.00015602,2]
[398914236,1765990240251,-1600.0,0.00015682,2]
[398914237,1765990240261,-8184.87901489,0.00015801,2]
[398914238,1765990240270,-14003.8447273,0.00015801,2]
[398914239,1765990240279,-599.97707901,0.00015876,2]
[398914240,1765990240289,-1046.42,0.00015876,2]
[398914241,1765990240301,-1574.05478619,0.000159,2]
[398914242,1765990240311,-1574.05478619,0.000159,2]
[398914243,1765990240320,-1574.05478619,0.000159,2]
[398914244,1765990240330,-1574.05478619,0.000159,2]
[398914245,1765990240340,-1574.05478619,0.000159,2]
[398914246,1765990240350,-224.07666052,0.00016075,2]
[398914247,1765990240360,-500.0,0.00016075,2]
[398914248,1765990240371,-280.25160558,0.00016075,2]
[398914249,1765990240381,-500.0,0.00016075,2]
[398914250,1765990240391,-493.15432385,0.00016075,2]
[398914251,1765990240403,-8184.87901489,0.00016076,2]
[398914252,1765990240413,-14003.8447273,0.00016076,2]
[398914253,1765990240423,-150.99,0.00016116,2]
[398914254,1765990240434,-2127.31,0.00016116,2]
[398914255,1765990240443,-1046.42,0.0001615,2]
[398914256,1765990240452,-200.0,0.0001615,2]
[398914257,1765990240462,-500.0,0.0001615,2]
[398914258,1765990240475,-8184.87901489,0.00016351,2]
[398914259,1765990240485,-14003.8447273,0.00016351,2]
[398914260,1765990240494,-1046.42,0.00016424,2]
[398914261,1765990240506,-300.0,0.00016438,2]
[398914262,1765990240515,-300.0,0.00016438,2]
[398914263,1765990240524,-300.0,0.00016438,2]
[398914264,1765990240534,-300.0,0.00016438,2]
[398914265,1765990240543,-300.0,0.00016438,2]
[398914266,1765990240554,-300.0,0.00016438,2]
[398914268,1765990240563,-300.0,0.00016438,2]
[398914270,1765990240572,-300.0,0.00016438,2]
[398914271,1765990240582,-300.0,0.00016438,2]
[398914273,1765990240592,-300.0,0.00016438,2]
[398914275,1765990240602,-300.0,0.00016438,2]
[398914277,1765990240611,-300.0,0.00016438,2]
[398914279,1765990240621,-300.0,0.00016438,2]
[398914281,1765990240630,-300.0,0.00016438,2]
[398914282,1765990240639,-300.0,0.00016438,2]
[398914283,1765990240649,-300.0,0.00016438,2]
[398914284,1765990240658,-300.0,0.00016438,2]
[398914285,1765990240668,-300.0,0.00016438,2]
[398914286,1765990240677,-300.0,0.00016438,2]
[398914287,1765990240687,-300.0,0.00016438,2]
[398914288,1765990240696,-300.0,0.00016438,2]
[398914289,1765990240706,-300.0,0.00016438,2]
[398914290,1765990240716,-197.26900433,0.00016438,2]
[398914291,1765990240730,-385.379067,0.00016535,2]
[398914292,1765990240740,-8184.87901489,0.00016625,2]
[398914293,1765990240750,-14003.8447273,0.00016625,2]
[398914294,1765990240760,-1046.42,0.00016698,2]
[398914295,1765990240770,-200.0,0.00016698,2]
[398914296,1765990240780,-500.0,0.00016698,2]
[398914297,1765990240790,-433.0,0.00016764,2]
[398914298,1765990240800,-199.21611118,0.0001681,2]
[398914299,1765990240811,-587.0,0.00016874,2]
[398914300,1765990240821,-2291.85364901,0.00016891,2]
[398914301,1765990240830,-10000.0,0.000169,2]
[398914302,1765990240840,-8184.87901489,0.000169,2]
[398914303,1765990240850,-346.96723982,0.000169,2]
[398914304,1765990240860,-236.9189482,0.000169,2]
[398914305,1765990240870,-14003.8447273,0.000169,2]
[398914306,1765990240879,-286.34012987,0.00016966,2]
[398914307,1765990240889,-1046.42,0.00016972,2]
[398914308,1765990240898,-506.79331904,0.00016973,2]
[398914309,1765990240907,-500.0,0.00016973,2]
[398914310,1765990240916,-500.0,0.00016973,2]
[398914311,1765990240928,-500.0,0.00016973,2]
[398914312,1765990240937,-500.0,0.00016973,2]
[398914313,1765990240947,-500.0,0.00016973,2]
[398914314,1765990240956,-500.0,0.00016973,2]
[398914315,1765990240966,-160.16120282,0.00016973,2]
[398914316,1765990240977,-500.0,0.00016973,2]
[398914317,1765990240986,-500.0,0.00016973,2]
[398914318,1765990240996,-501.15889228,0.00016973,2]
[398914319,1765990241005,-202.22387202,0.00016973,2]
[398914320,1765990241015,-500.0,0.00016973,2]
[398914321,1765990241024,-500.0,0.00016973,2]
[398914322,1765990241034,-594.24401779,0.00016973,2]
[398914323,1765990241043,-500.0,0.00016973,2]
[398914324,1765990241052,-216.18014628,0.00016973,2]
[398914325,1765990241062,-165.24964768,0.00016973,2]
[398914326,1765990241071,-162.80787779,0.00016973,2]
[398914327,1765990241080,-500.0,0.00016973,2]
[398914328,1765990241090,-150.0,0.00016973,2]
[398914329,1765990241099,-150.0,0.00016973,2]
[398914330,1765990241108,-500.0,0.00016986,2]
[398914331,1765990241117,-4907.19,0.00016986,2]
[398914332,1765990241127,-923.96065531,0.0001699,2]
[398914333,1765990241137,-923.96065531,0.0001699,2]
[398914334,1765990241147,-923.96065531,0.0001699,2]
[398914335,1765990241156,-151.0,0.00016997,2]
[398914336,1765990241165,-258.308678,0.00016997,2]
[398914337,1765990241175,-7889.4264937,0.00016999,2]
[398914338,1765990241185,-54051.5045779,0.00016999,2]
[398914339,1765990241194,-197923.4618551,0.00016999,2]
[398914340,1765990241204,-500.0,0.00016999,2]
[398914341,1765990241213,-500.0,0.00016999,2]
[398914342,1765990241225,-500.0,0.00016999,2]
[398914343,1765990241235,-500.0,0.00016999,2]
[398914344,1765990241244,-500.0,0.00016999,2]
[398914345,1765990241254,-500.0,0.00016999,2]
[398914346,1765990241263,-500.0,0.00016999,2]
[398914347,1765990241272,-500.0,0.00016999,2]
[398914348,1765990241281,-500.0,0.00016999,2]
[398914349,1765990241291,-500.0,0.00016999,2]
[398914350,1765990241300,-500.0,0.00016999,2]
[398914351,1765990241309,-500.0,0.00016999,2]
[398914352,1765990241319,-500.0,0.00016999,2]
[398914353,1765990241328,-500.0,0.00016999,2]
[398914354,1765990241338,-500.0,0.00016999,2]
[398914355,1765990241347,-500.0,0.00016999,2]
[398914356,1765990241356,-542.65,0.00016999,2]
[398914357,1765990241365,-666.0,0.00016999,2]
[398914358,1765990241375,-300.0,0.00016999,2]
[398914359,1765990241384,-3430952.46824237,0.00017,2]
[398914360,1765990241394,-734705.13083108,0.00017,2]
[398914361,1765990242775,-6146.37868619,0.00017,2]
[398914362,1765990242851,-522.73082828,0.00017,2]
[398914363,1765990242936,-260.91983912,0.00017,2]
[398914364,1765990242947,-1409.95247366,0.00017,2]
[398914365,1765990242962,-191243.45119184,0.00017,2]
[398914371,1765990243083,-213075.24822151,0.00017,2]
[398914372,1765990243094,-1279.2779985,0.00017,2]
[398914374,1765990243105,-2919.09164166,0.00017,2]
[398914376,1765990243116,-9006.5371147,0.00017,2]
[398914378,1765990243127,-424.34554978,0.00017,2]
[398914381,1765990243156,-1418.02467587,0.00017,2]
[398914382,1765990243167,-426.61272152,0.00017,2]
[398914383,1765990243290,-107445.43707024,0.00017,2]
[398914384,1765990243305,-836.99523524,0.00017,2]
[398914385,1765990243344,-688.82464671,0.00017,2]
[398914386,1765990243399,-3410.51349519,0.00017,2]
[398914387,1765990243411,-1191.4483,0.00017,2]
[398914407,1765990246180,-778.86652638,0.00017,2]
[398914408,1765990246234,-355.15,0.00017,2]
[398914409,1765990246246,-40404.95478861,0.00017,2]
[398914410,1765990246258,-3155.79897405,0.00017,2]
[398914411,1765990246447,-9049.07545173,0.00017,2]
[398914412,1765990246459,-2411.93960232,0.00017,2]
[398914413,1765990246471,-2289.7417854,0.00017,2]
[398914414,1765990246483,-3012.85491514,0.00017,2]
[398914415,1765990246495,-308.93545843,0.00017,2]
[398914464,1765991087005,1468.64,7.225e-05,2]
[398914465,1765991087300,1468.64,7.606e-05,2]
[398914466,1765991087572,1468.64,7.986e-05,2]
[398914467,1765991087802,1468.64,8.366e-05,2]
[398914468,1765991088081,1468.64,8.746e-05,2]
[398914469,1765991088292,1468.64,9.127e-05,2]
[398914470,1765991088493,1468.64,9.507e-05,2]
[398914471,1765991088735,1468.64,9.887e-05,2]
[398914472,1765991089196,1468.64,0.00010267,2]
[398914473,1765991089413,1468.64,0.00010648,2]
[398914474,1765991089635,1468.64,0.00011028,2]
[398914475,1765991089992,1468.64,0.00011408,2]
[398914476,1765991090268,1468.64,0.00011789,2]
[398914534,1765991432679,-1468.64,0.00012169,2]
[398914536,1765991432689,-1468.64,0.00012549,2]
[398914538,1765991432698,-1468.64,0.00012929,2]
[398914540,1765991432708,-1146.69012438,0.0001331,2]
[398914542,1765991432721,-321.94987562,0.0001331,2]
[398914544,1765991432730,-250.0,0.00013386,2]
[398914546,1765991432739,-195.0,0.00013386,2]
[398914548,1765991432749,-1200.0,0.00013689,2]
[398914549,1765991432758,-568.53209979,0.0001369,2]
[398914550,1765991432769,-900.10790021,0.0001369,2]
[398914551,1765991432779,-300.0,0.00014067,2]
[398914552,1765991432788,-1038.31185181,0.00014068,2]
[398914553,1765991432815,-161.68814819,0.00014068,2]
[398914554,1765991432824,-300.0,0.00014068,2]
[398914555,1765991432834,-1468.64,0.0001407,2]
[398914556,1765991432843,-266.49,0.00014138,2]
[398914557,1765991432853,-1938.76,0.0001425,2]
[398914559,1765991432863,-5012.81,0.00014287,2]
[398914561,1765991432872,-500.0,0.0001431,2]
[398914563,1765991432881,-729.0,0.00014316,2]
[398914565,1765991432891,-250.0,0.00014323,2]
[398914567,1765991432902,-170.0,0.000144,2]
[398914569,1765991432912,-166.66,0.0001441,2]
[398914571,1765991432922,-1468.64,0.0001445,2]
[398914573,1765991432931,-150.0,0.00014504,2]
[398914576,1765991432941,-151.0,0.00014505,2]
[398914578,1765991432951,-200.0,0.00014505,2]
[398914579,1765991432960,-151.0,0.00014505,2]
[398914582,1765991432971,-151.0,0.00014505,2]
[398914584,1765991432980,-151.0,0.00014505,2]
[398914585,1765991432990,-151.0,0.00014505,2]
[398914587,1765991433000,-151.0,0.00014505,2]
[398914589,1765991433011,-151.0,0.00014505,2]
[398914592,1765991433021,-151.0,0.00014505,2]
[398914593,1765991433031,-151.0,0.00014505,2]
[398914595,1765991433041,-151.0,0.00014505,2]
[398914597,1765991433050,-151.0,0.00014505,2]
[398914599,1765991433060,-151.0,0.00014505,2]
[398914601,1765991433069,-151.0,0.00014505,2]
[398914603,1765991433078,-151.0,0.00014505,2]
[398914605,1765991433088,-151.0,0.00014505,2]
[398914607,1765991433097,-151.0,0.00014505,2]
[398914609,1765991433106,-151.0,0.00014505,2]
[398914611,1765991433116,-151.0,0.00014505,2]
[398914613,1765991433126,-200.0,0.00014505,2]
[398914615,1765991433135,-151.0,0.00014505,2]
[398914617,1765991433144,-151.0,0.00014505,2]
[398914620,1765991433154,-151.0,0.00014505,2]
[398914621,1765991433163,-151.0,0.00014505,2]
[398914624,1765991433172,-151.0,0.00014505,2]
[398914625,1765991433182,-500.0,0.00014505,2]
[398914627,1765991433191,-151.0,0.00014505,2]
[398914629,1765991433200,-494.17025797,0.00014505,2]
[398914632,1765991433211,-5.82974203,0.00014505,2]
[398914634,1765991433221,-425.06159563,0.00014505,2]
[398914636,1765991433230,-500.0,0.00014505,2]
[398914638,1765991433239,-200.0,0.00014505,2]
[398914640,1765991433248,-151.12,0.00014512,2]
[398914641,1765991433257,-150.99,0.00014512,2]
[398914643,1765991433266,-152.9,0.00014512,2]
[398914645,1765991433280,-150.1,0.00014512,2]
[398914647,1765991433289,-151.4,0.00014512,2]
[398914649,1765991433298,-151.97,0.00014512,2]
[398914651,1765991433308,-152.3,0.00014513,2]
[398914653,1765991433318,-152.88,0.00014513,2]
[398914655,1765991433328,-150.51,0.00014513,2]
[398914657,1765991433337,-150.7,0.00014513,2]
[398914659,1765991433347,-150.45,0.00014513,2]
[398914661,1765991433357,-151.99563163,0.00014513,2]
[398914663,1765991433366,-1000.0,0.00014513,2]
[398914665,1765991433375,-152.52,0.00014513,2]
[398914667,1765991433384,-151.56,0.00014513,2]
[398914669,1765991433394,-151.68,0.00014513,2]
[398914671,1765991433403,-500.0,0.00014514,2]
[398914673,1765991433411,-500.0,0.00014514,2]
[398914675,1765991433420,-500.0,0.00014514,2]
[398914677,1765991433430,-500.0,0.00014514,2]
[398914679,1765991433439,-515.02785711,0.00014514,2]
[398914681,1765991433448,-500.0,0.00014514,2]
[398914683,1765991433457,-500.0,0.00014514,2]
[398914685,1765991433468,-500.0,0.00014514,2]
[398914687,1765991433477,-500.0,0.00014514,2]
[398914689,1765991433486,-500.0,0.00014514,2]
[398914691,1765991433495,-500.0,0.00014514,2]
[398914693,1765991433504,-500.0,0.00014514,2]
[398914695,1765991433514,-500.0,0.00014514,2]
[398914696,1765991433523,-500.0,0.00014514,2]
[398914698,1765991433532,-514.23721699,0.00014514,2]
[398914700,1765991433541,-550.52788879,0.00014514,2]
[398914702,1765991433551,-500.0,0.00014514,2]
[398914704,1765991433560,-500.0,0.00014514,2]
[398914706,1765991433569,-500.0,0.00014514,2]
[398914708,1765991433578,-500.0,0.00014514,2]
[398914710,1765991433587,-220.0,0.00014514,2]
[398914712,1765991433596,-500.0,0.00014514,2]
[398914714,1765991433605,-500.0,0.00014514,2]
[398914716,1765991433614,-500.0,0.00014514,2]
[398914718,1765991433623,-500.0,0.00014514,2]
[398914720,1765991433632,-507.58085113,0.00014514,2]
[398914722,1765991433641,-500.0,0.00014514,2]
[398914724,1765991433650,-500.0,0.00014514,2]
[398914726,1765991433659,-500.0,0.00014514,2]
[398914728,1765991433668,-500.0,0.00014514,2]
[398914730,1765991433677,-500.0,0.00014514,2]
[398914732,1765991433686,-504.05914821,0.00014514,2]
[398914734,1765991433695,-286.90864955,0.00014514,2]
[398914736,1765991433705,-500.0,0.00014514,2]
[398914738,1765991433717,-500.0,0.00014514,2]
[398914740,1765991433726,-500.0,0.00014514,2]
[398914742,1765991433735,-500.0,0.00014514,2]
[398914744,1765991433745,-500.0,0.00014514,2]
[398914746,1765991433754,-272.84521117,0.00014514,2]
[398914749,1765991433768,-500.0,0.00014514,2]
[398914751,1765991433777,-536.90196628,0.00014514,2]
[398914753,1765991433787,-500.0,0.00014514,2]
[398914755,1765991433796,-500.0,0.00014514,2]
[398914757,1765991433805,-500.0,0.00014514,2]
[398914759,1765991433815,-500.0,0.00014514,2]
[398914761,1765991433824,-500.0,0.00014514,2]
[398914762,1765991433833,-500.0,0.00014514,2]
[398914765,1765991433843,-414.65148789,0.00014514,2]
[398914766,1765991433853,-1051.88,0.00014514,2]
[398914768,1765991433862,-499.93,0.00014517,2]
[398914771,1765991433872,-788.55,0.00014664,2]
[398914773,1765991433882,-166.66,0.00014713,2]
[398914775,1765991433891,-500.0,0.00014788,2]
[398914777,1765991433900,-1051.88,0.00014788,2]
[398914779,1765991433909,-150.53901239,0.000149,2]
[398914781,1765991433919,-150.53901239,0.000149,2]
[398914783,1765991433930,-150.53901239,0.000149,2]
[398914785,1765991433940,-166.67,0.00014913,2]
[398914787,1765991433950,-31.22597257,0.00014923,2]
[398914789,1765991433966,-235.26402743,0.00014923,2]
[398914791,1765991433977,-166.66,0.00015017,2]
[398914793,1765991433986,-200.0,0.00015053,2]
[398914794,1765991433995,-500.0,0.00015053,2]
[398914795,1765991434005,-1680.0,0.00015058,2]
[398914796,1765991434014,-500.0,0.00015062,2]
[398914797,1765991434024,-1051.88,0.00015062,2]
[398914798,1765991434033,-291.98556547,0.00015068,2]
[398914799,1765991434049,-3528.14577167,0.00015068,2]
[398914802,1765991438302,-539.93551002,0.00014508,2]
[398914803,1765991438358,-41895.44163598,0.00014508,2]
[398914804,1765991438368,-3361.45866286,0.00015068,2]
[398914805,1765991438378,-283.0,0.00015238,2]
[398914806,1765991438388,-151.0,0.00015278,2]
[398914807,1765991438398,-151.0,0.00015278,2]
[398914808,1765991438408,-405.0,0.00015287,2]
[398914809,1765991438418,-166.66,0.0001532,2]
[398914810,1765991438427,-500.0,0.00015336,2]
[398914811,1765991438437,-1051.88,0.00015336,2]
[398914812,1765991438446,-260.0,0.00015337,2]
[398914813,1765991438456,-500.0,0.00015386,2]
[398914814,1765991438465,-500.0,0.00015386,2]
[398914815,1765991438476,-500.0,0.00015386,2]
[398914816,1765991438485,-500.0,0.00015386,2]
[398914817,1765991438494,-500.0,0.00015386,2]
[398914818,1765991438504,-618.36681449,0.00015386,2]
[398914819,1765991438513,-540.0,0.00015386,2]
[398914820,1765991438522,-500.0,0.00015386,2]
[398914821,1765991438531,-500.0,0.00015386,2]
[398914822,1765991438540,-500.0,0.00015386,2]
[398914823,1765991438549,-500.0,0.00015386,2]
[398914824,1765991438559,-500.0,0.00015386,2]
[398914825,1765991438568,-500.0,0.00015386,2]
[398914827,1765991438577,-500.0,0.00015386,2]
[398914829,1765991438587,-500.0,0.00015386,2]
[398914831,1765991438596,-500.0,0.00015386,2]
[398914833,1765991438605,-500.0,0.00015386,2]
[398914835,1765991438614,-500.0,0.00015386,2]
[398914837,1765991438623,-500.0,0.00015386,2]
[398914838,1765991438633,-500.0,0.00015386,2]
[398914839,1765991438642,-500.0,0.00015386,2]
[398914840,1765991438651,-500.0,0.00015386,2]
[398914841,1765991438660,-500.0,0.00015386,2]
[398914842,1765991438670,-500.0,0.00015386,2]
[398914843,1765991438679,-500.0,0.00015386,2]
[398914844,1765991438689,-500.0,0.00015386,2]
[398914845,1765991438698,-500.0,0.00015386,2]
[398914846,1765991438707,-468.25704073,0.00015386,2]
[398914847,1765991438717,-500.0,0.00015386,2]
[398914848,1765991438727,-500.0,0.00015386,2]
[398914849,1765991438737,-500.0,0.00015386,2]
[398914850,1765991438746,-500.0,0.00015386,2]
[398914851,1765991438756,-500.0,0.00015386,2]
[398914852,1765991438765,-500.0,0.00015386,2]
[398914853,1765991438775,-500.0,0.00015386,2]
[398914854,1765991438783,-500.0,0.00015386,2]
[398914855,1765991438792,-500.0,0.00015386,2]
[398914856,1765991438801,-300.00000001,0.00015386,2]
[398914857,1765991438810,-500.0,0.00015386,2]
[398914858,1765991438819,-500.0,0.00015386,2]
[398914859,1765991438828,-500.0,0.00015386,2]
[398914860,1765991438838,-500.0,0.00015386,2]
[398914861,1765991438846,-500.0,0.00015386,2]
[398914862,1765991438856,-1000.0,0.00015387,2]
[398914863,1765991438865,-1000.0,0.00015387,2]
[398914864,1765991438875,-12919.35067979,0.00015388,2]
[398914865,1765991438884,-420.0,0.0001541,2]
[398914866,1765991438893,-1658.0,0.00015411,2]
[398914867,1765991438902,-40.58516608,0.00015601,2]
[398914868,1765991438914,-159.41483392,0.00015601,2]
[398914869,1765991438923,-500.0,0.00015601,2]
[398914870,1765991438932,-211.64516608,0.0001561,2]
[398914871,1765991438944,-288.35483392,0.0001561,2]
[398914872,1765991438954,-1051.88,0.0001561,2]
[398914873,1765991438963,-255.0,0.00015621,2]
[398914874,1765991438973,-166.66,0.00015623,2]
[398914875,1765991438983,-266.49,0.00015709,2]
[398914876,1765991438992,-281.81630028,0.00015884,2]
[398914877,1765991439000,-243.78492994,0.00015884,2]
[398914878,1765991439012,-808.09507006,0.00015884,2]